[Event "4NCL Div 1 2024-25"]
[Site "England"]
[Date "2025.01.26"]
[Round "4.23"]
[White "Hryshchenko, Kamila"]
[Black "Baptie, Justin P"]
[Result "1-0"]
[Annotator "TA"]
[ECO "B21"]
[WhiteElo "2138"]
[BlackElo "2099"]
[PlyCount "67"]
[EventDate "2024.11.23"]
[EventType "team-tourn"]
[EventCountry "ENG"]
[SourceTitle "playchess.com"]
[Source "ChessBase"]
[SourceQuality "1"]
[TimeControl "40/6000+30:3000+30"]

{[%evp 9,67,0,0,2,17,18,2,1,0,-13,0,0,27,16,58,45,37,33,56,64,130,81,100,81,84,16,72,66,122,72,93,69,136,142,159,166,177,170,180,158,189,170,156,153,629,633,637,617,714,432,410,397,418,409,412,381,389,374,1431,1419]} 1. e4 {[%emt 0:10:05]} c5 {[%emt 0:10:19]} 2. d3 {[%emt 0:00:24]} Nc6 {[%emt 0:00:38]} 3. f4 {[%emt 0:01:11]} g6 {[%emt 0:01:21]} 4. Nf3 {[%emt 0:00:21]} Bg7 {[%emt 0:00:07]} 5. Be2 {[%emt 0:00:25]} d6 {[%emt 0:01:29]} 6. c3 {[%emt 0:02:12] B21: Sicilian: 2 f4 and Morra Gambit.} e6 {[%emt 0:06:37]} 7. O-O {[%emt 0:00:34]} Nge7 {[%emt 0:02:49]} 8. Qe1 {[%emt 0:02:14] The position is equal.} b6 {[%emt 0:04:53]} 9. Qh4 $146 {[%emt 0:02:50]} (9. Na3 Qd7 10. Nc4 b5 11. Ne3 f5 12. a4 b4 13. Nc4 bxc3 14. bxc3 Ba6 15. e5 dxe5 16. Nfxe5 Nxe5 17. Nxe5 {1-0 Nevanlinna,R (2263)-Kononen,K (2260) FIN-chT 1617 2016 (9.3)}) 9... h6 {[%emt 0:13:47]} 10. Na3 {[%emt 0:02:07]} a6 {[%emt 0:04:55]} 11. Nc2 {[%emt 0:02:10]} Ng8 {[%emt 0:00:21]} 12. Qf2 {[%emt 0:05:18]} Nf6 {[%emt 0:02:21]} 13. h3 {[%emt 0:00:30]} d5 {[%emt 0:00:45]} 14. e5 {[%emt 0:03:00]} Ng8 {[%emt 0:02:28]} ({Black should try} 14... Nd7 $1 $14) 15. Be3 {[%emt 0:09:36]} (15. b4 $142) 15... Rb8 {[%emt 0:02:19]} 16. g4 {[%emt 0:12:11]} Nge7 {[%emt 0:00:44]} 17. Qh4 {[%emt 0:02:11]} (17. b3 $16) 17... Bb7 {[%emt 0:03:10]} (17... h5 $11) 18. d4 $16 {[%emt 0:05:03]} cxd4 {[%emt 0:06:52]} (18... c4 $14) 19. cxd4 {[%emt 0:00:45]} ({Better is} 19. Nfxd4 O-O 20. Rae1) 19... Na5 {[%emt 0:03:46]} 20. Bd3 {[%emt 0:01:36] White has more active pieces.} Nc4 {[%emt 0:06:07]} (20... h5 $14) 21. Bc1 {[%emt 0:01:01]} h5 {[%emt 0:03:48]} 22. Qg3 {[%emt 0:02:02]} hxg4 {[%emt 0:00:54]} 23. hxg4 {[%emt 0:00:16][%cal Bh3g4,Bg4f5][%mdl 32]} b5 {[%emt 0:01:38]} 24. b3 {[%emt 0:03:18]} Na5 {[%emt 0:00:36]} 25. f5 {[%emt 0:04:00]} gxf5 {[%emt 0:02:10]} 26. gxf5 {[%emt 0:00:10]} Bh6 $2 {[%emt 0:03:18] [#] This costs Black the game.} (26... exf5 $16 27. Bg5 (27. Qxg7 Rg8 $14) 27... Nac6) 27. Bxh6 $18 {[%emt 0:05:26]} Rxh6 {[%emt 0:00:11]} 28. Qg7 {[%emt 0:00:36] Inhibits Kd7.} Rh5 {[%emt 0:02:12]} 29. f6 {[%emt 0:05:23]} Kd7 {[%emt 0:03:30]} 30. fxe7 {[%emt 0:01:52]} Qxe7 {[%emt 0:00:10]} 31. Kf2 {[%emt 0:01:23]} Rbh8 {[%emt 0:00:48]} 32. Ke2 {[%emt 0:00:31]} Nc6 {[%emt 0:01:28]} 33. Rg1 {[%emt 0:03:38]} R8h7 $2 {[%emt 0:00:32] [#]} (33... Kc8 34. Raf1 Nd8) 34. Bxh7 {[%emt 0:00:56] Weighted Error Value: White=0.26 (precise) /Black=0.58  Loses game:     	---       	Black=1      Mistake:       	White=3     	Black=5      Inaccurate:     	---       	Black=2      OK:         	White=8     	Black=4      Best:        	White=2     	---} 1-0

[Event "4NCL Div 1 2024-25"]
[Site "England"]
[Date "2025.01.26"]
[Round "4.24"]
[White "Pert, Nina"]
[Black "Varnam, Liam D"]
[Result "1-0"]
[Annotator "TA"]
[ECO "B33"]
[WhiteElo "1984"]
[BlackElo "2033"]
[PlyCount "85"]
[EventDate "2024.11.23"]
[EventType "team-tourn"]
[EventCountry "ENG"]
[SourceTitle "playchess.com"]
[Source "ChessBase"]
[SourceQuality "1"]
[TimeControl "40/6000+30:3000+30"]

{[%evp 24,84,27,13,14,13,16,12,4,-18,-12,-4,31,0,38,-60,-12,-10,-8,-76,-73,-97,-40,-69,-72,-81,-77,-66,-52,-107,-45,-62,-18,-200,-170,-395,-373,-376,-64,-56,0,0,9,0,196,174,499,395,979,562,29992,29993,29995,29996,29996,29997,29997,29998,29998,29998,29998,29999,29999]} 1. e4 {[%emt 0:13:03]} c5 {[%emt 0:10:13]} 2. Nf3 {[%emt 0:00:06][%cal Bg1f3,Bf3d4,Bd4b5,Bb5a3,Ba3c2][%mdl 32]} Nc6 {[%emt 0:00:05]} 3. d4 {[%emt 0:00:16]} cxd4 {[%emt 0:00:06]} 4. Nxd4 {[%emt 0:00:04]} Nf6 {[%emt 0:00:09]} 5. Nc3 {[%emt 0:00:20]} e5 {[%emt 0:00:08]} 6. Ndb5 {[%emt 0:01:00]} d6 {[%emt 0:00:12]} 7. Bg5 {[%emt 0:01:00]} a6 {[%emt 1:33:07]} 8. Na3 {[%emt 0:00:06]} b5 {[%emt 0:00:00]} 9. Nd5 {[%emt 0:01:37]} Be7 {[%emt 0:00:00][%cal Bf8e7,Be7f6,Bf6g5][%mdl 32]} 10. Bxf6 {[%emt 0:00:32]} Bxf6 {[%emt 0:00:00]} 11. c3 {[%emt 0:00:25]} Rb8 {[%emt 0:00:00]} 12. Nc2 {[%emt 0:00:26]} O-O {[%emt 0:00:00]} 13. g3 {[%emt 0:05:15]} Bg5 {[%emt 0:00:00] B33: Sicilian: Pelikan and Sveshnikov Variations.} 14. h4 {[%emt 0:04:01]} Bh6 {[%emt 0:00:00]} 15. Bh3 {[%emt 0:05:05]} Be6 {[%emt 0:00:00] The position is equal.} 16. Nce3 {[%emt 0:11:21]} (16. Bf5 {looks sharper.} Bxd5 17. Qxd5 Qb6 18. O-O) 16... Bxe3 {[%emt 0:00:00]} 17. Nxe3 {[%emt 0:02:52]} Ne7 {[%emt 0:00:00]} 18. h5 $146 {[%emt 0:05:57]} (18. Qd2 Qd7 19. Bg2 f5 20. O-O-O Rb6 21. exf5 Nxf5 22. Nxf5 Bxf5 23. Qe3 Qc7 24. Bd5+ {1-0 Djukic,K (1536)-Field,R (1810) Wch U16 Girls 2023 (3)}) 18... Qd7 {[%emt 0:00:00]} 19. g4 {[%emt 0:01:42]} (19. h6 $14 g6 (19... Bxh3 $2 20. hxg7 Rfd8 21. Qh5 $18) 20. Bxe6 Qxe6 21. Qb3) 19... Qc6 {[%emt 0:00:00]} (19... b4 $15 {is more appropriate.}) 20. Qf3 $11 {[%emt 0:02:53][%cal Oh5h6]} d5 {[%emt 0:00:00]} 21. h6 {[%emt 0:07:48]} dxe4 $17 {[%emt 0:00:00]} (21... gxh6 $6 22. Bg2 d4 23. Nf5 Bxf5 24. gxf5 $14) 22. Qg3 {[%emt 0:00:21] [#]} g6 {[%emt 0:00:00]} (22... gxh6 23. Qxe5 f6 24. Qf4 $11) (22... g5 $1 $17 {...Ng6 would now be deadly.} 23. Qxe5 f6) 23. O-O {[%emt 0:10:41]} f6 {[%emt 0:00:00]} 24. Bg2 {[%emt 0:02:36]} g5 {[%emt 0:00:00]} 25. Rfe1 {[%emt 0:03:36]} Ng6 {[%emt 0:00:14]} 26. Nc2 {[%emt 0:01:58]} (26. Nf1 $15) 26... Nf4 {[%emt 0:00:47]} (26... Qc8 $17 27. Ne3 Qb7) 27. Bxe4 $15 {[%emt 0:03:10]} Qd7 {[%emt 0:04:10]} 28. Nb4 $2 {[%emt 0:10:17]} (28. Ne3 $1 $11 {and White stays safe.}) 28... Rb6 {[%emt 0:04:43][%cal Ob6d6]} 29. Qe3 $2 {[%emt 0:01:11]} (29. Bf3 {was called for.}) 29... Rd6 $19 {[%emt 0:00:14][%cal Oa6a5]} 30. a4 {[%emt 0:03:59]} a5 $2 {[%emt 0:00:35]} (30... Bxg4 31. axb5 Qxb5 (31... axb5 32. Ra7 $14) 32. Qa7 $11) (30... bxa4 $19 31. c4 Bxc4 (31... Bxg4 $2 32. Nd5 $19)) 31. axb5 $1 $15 {[%emt 0:02:45]} Bxg4 {[%emt 0:00:42]} (31... axb4 32. Ra7 Qxb5 33. Rg7+ Kh8 34. Rxh7+ Kg8 35. Rg7+ Kh8 36. Rh7+ Kg8 37. c4 $11) ({Better is} 31... Bf7 $1 $15 32. Bf5 Qxb5) 32. Rxa5 $11 {[%emt 0:01:13]} Rd1 {[%emt 0:00:30]} 33. Nc2 {[%emt 0:05:59]} Rxe1+ $2 {[%emt 0:00:30]} ({But not} 33... f5 $6 34. Bg2 $16) (33... Bh5 $11 34. Kh2 Bg6 35. Rxd1 Qxd1) 34. Nxe1 $18 {[%emt 0:00:10] Hoping for Ra7.} f5 $2 {[%emt 0:00:31]} (34... Ne2+ 35. Kf1 Nf4) 35. Bc2 {[%emt 0:00:21] Threatening mate with Bb3+.} Ne2+ $2 {[%emt 0:00:24]} (35... Bd1 36. Qa7 (36. Qxe5 Bxc2 37. Qg7+ Qxg7 $16) 36... Qxa7 37. Rxa7 Bxc2 38. Nxc2 Rb8) 36. Kh2 {[%emt 0:00:36]} Qf7 {[%emt 0:00:38] [#] Against Bb3} 37. Bb3 $1 {[%emt 0:01:26] White mates.} Qxb3 {[%emt 0:00:03]} (37... Nf4 38. Qxe5) 38. Qxg5+ {[%emt 0:00:04]} Kf7 {[%emt 0:01:29][%cal Bg8f7,Bf7e6,Be6d5,Bd5e4,Be4f4][%mdl 32]} 39. Ra7+ {[%emt 0:00:27]} Ke6 {[%emt 0:00:00]} 40. Qe7+ {[%emt 0:00:03]} Kd5 {[%emt 0:00:00]} 41. Qd7+ {[%emt 0:50:06]} Ke4 {[%emt 0:50:50]} 42. Qd3+ {[%emt 0:00:07]} Kf4 {[%emt 0:00:05]} 43. Qe3# {[%emt 0:00:36] Weighted Error Value: White=0.51/Black=0.90  Loses game:     	White=1     	Black=1      Missed win:     	---       	Black=1      Mistake:       	White=4     	Black=6      Inaccurate:     	White=3     	Black=4      OK:         	White=6     	Black=5      Best:        	White=1     	Black=2      Strong:       	White=1     	---} 1-0

[Event "4NCL Div 1 2024-25"]
[Site "England"]
[Date "2025.01.26"]
[Round "4.25"]
[White "Rendle, Thomas E"]
[Black "Gormally, Daniel W"]
[Result "0-1"]
[Annotator "TA"]
[ECO "E69"]
[WhiteElo "2383"]
[BlackElo "2424"]
[PlyCount "92"]
[EventDate "2024.11.23"]
[EventType "team-tourn"]
[EventCountry "ENG"]
[SourceTitle "playchess.com"]
[Source "ChessBase"]
[SourceQuality "1"]
[TimeControl "40/6000+30:3000+30"]

{[%evp 30,92,48,41,50,39,49,-57,-46,-67,-72,-60,-67,-136,-129,-149,-141,-131,-134,-177,-143,-129,-135,-125,-135,-169,0,0,0,0,0,0,0,-21,0,0,0,0,0,-1,-1,-117,-133,-291,-200,-214,-124,-459,-278,-306,-224,-508,-493,-496,-471,-501,-457,-427,-431,-429,-363,-577,-540,-464,-426]} 1. d4 {[%emt 0:10:05]} Nf6 {[%emt 0:11:47]} 2. c4 {[%emt 0:00:12]} g6 {[%emt 0:02:03]} 3. g3 {[%emt 0:00:47]} Bg7 {[%emt 0:01:06]} 4. Bg2 {[%emt 0:00:09]} O-O {[%emt 0:00:11]} 5. Nc3 {[%emt 0:00:24]} d6 {[%emt 0:01:50]} 6. Nf3 {[%emt 0:01:18]} Nbd7 {[%emt 0:00:09]} 7. O-O {[%emt 0:00:35]} e5 {[%emt 0:00:08]} 8. e4 {[%emt 0:00:13]} c6 {[%emt 0:00:07]} 9. h3 {[%emt 0:03:06]} Re8 {[%emt 0:01:27]} 10. Re1 {[%emt 0:07:39]} exd4 {[%emt 0:01:03]} 11. Nxd4 {[%emt 0:00:10]} a5 {[%emt 0:00:06]} 12. Be3 {[%emt 0:02:25]} Nc5 {[%emt 0:00:55]} 13. Qc2 {[%emt 0:00:42]} a4 {[%emt 0:05:08]} 14. Rad1 {[%emt 0:09:37]} Nfd7 {[%emt 1:21:30]} 15. f4 {[%emt 0:02:06]} Qa5 {[%emt 0:00:00]} 16. Bf2 {[%emt 0:07:17]} Nb6 {[%emt 0:00:00] 16...Nb6 has become a bit dusty these days. E69: King's Indian: Fianchetto: 6...Nbd7 7 0-0 e5 8 e4 c6 9 h3.} 17. Bf1 {[%emt 0:00:33]} (17. Nb1 {simplifies} f5 18. Nc3 Nxe4 19. Nxe4 fxe4 20. Rxe4 Bd7 21. Rxe8+ Rxe8 22. b3) 17... Bd7 {[%emt 0:00:00]} 18. Nf3 {[%emt 0:09:34]} ({White should try} 18. g4 $14) 18... a3 $15 {[%emt 0:00:00] Black is slightly better.} 19. Rxd6 $146 {[%emt 0:07:54][%cal Ob2b4]} (19. Bd4 Bxd4+ 20. Nxd4 axb2 21. Qxb2 Nba4 22. Nxa4 Qxa4 23. Nb3 Nxe4 24. Rxe4 Rxe4 25. Rxd6 Qa7+ 26. c5 Be6 27. Qf6 Bxb3 {0-1 Grey,P (2000)-Winslow,E (2421) San Francisco TNM Fall op 2011 (8)}) 19... axb2 {[%emt 0:00:00][%csl Ob2] Black has a strong passed pawn. Black plays on the queen side and is better} 20. e5 {[%emt 0:00:10][%cal Of3g5]} Be6 {[%emt 0:00:00]} 21. Nd2 {[%emt 0:06:34]} (21. Qxb2 $15 Nxc4 22. Bxc4 Bxc4 23. Nd2) 21... Nba4 $17 {[%emt 0:00:00]} 22. Nxa4 {[%emt 0:03:42]} Nxa4 {[%emt 0:00:00]} 23. Ne4 {[%emt 0:06:51] [#]} Bf5 $1 {[%emt 0:00:00]} 24. Bg2 {[%emt 0:01:47]} Bxe4 {[%emt 0:00:00]} 25. Bxe4 {[%emt 0:00:20]} Bf8 {[%emt 0:00:00] Wards off c5} 26. c5 {[%emt 0:03:01]} Bxd6 {[%emt 0:00:00]} 27. cxd6 {[%emt 0:00:13]} Nc3 $2 {[%emt 0:00:00]} (27... c5 $19 {[%cal Oc5c4] ...c4! is the strong threat.} 28. Rb1 Qb5 (28... Qc3 $2 29. Be1 $19)) 28. Qxb2 $11 {[%emt 0:01:17]} Nxe4 {[%emt 0:00:00]} 29. Rxe4 {[%emt 0:00:08]} Qxa2 {[%emt 0:00:00]} 30. Qxa2 {[%emt 0:10:24]} (30. Qxb7 Qc2 31. Re1 Reb8 $17) 30... Rxa2 {[%emt 0:00:00][%mdl 4096] Endgame KRR-KRB} 31. Rd4 {[%emt 0:00:18] Wards off Rd2} Kf8 {[%emt 0:00:00]} 32. g4 {[%emt 0:01:00] [#]} g5 {[%emt 0:00:00]} 33. f5 {[%emt 0:01:44]} Re2 {[%emt 0:00:00]} (33... Rxe5 34. d7 Ra8 (34... Ra1+ $2 35. Kg2 $18) 35. d8=Q+ (35. d8=R+ Re8 $18) 35... Rxd8 36. Rxd8+ Ke7 37. Rc8 $18) 34. Rd1 {[%emt 0:01:24] Strongly threatening d7.} (34. Rd3 $5 Rd8 $8 (34... R2xe5 $2 35. d7 $18) 35. Bb6 $14) 34... Rd8 {[%emt 0:00:00]} (34... R2xe5 $2 35. d7 $18) 35. Bg3 {[%emt 0:02:25]} (35. d7 $1 $11 Rxf2 (35... Rxe5 36. Bb6 $16) 36. Kxf2) 35... Ke8 $17 {[%emt 0:00:00]} 36. Rb1 $2 {[%emt 0:01:56]} (36. Kf1 $17 Re4 37. Rb1) 36... b5 {[%emt 0:00:00]} 37. Kf1 {[%emt 0:02:26]} Re4 {[%emt 0:00:00]} (37... Re3 $19 38. Kf2 Rd3) 38. Kf2 {[%emt 0:00:17][%mdl 8192]} (38. Ra1 $17) 38... Kd7 {[%emt 0:00:00]} 39. Kf3 {[%emt 0:01:46]} Ra4 {[%emt 0:00:00]} 40. h4 $2 {[%emt 0:04:54]} (40. Re1 Re8 41. h4) 40... Ra3+ $19 {[%emt 0:00:00]} 41. Kg2 {[%emt 0:52:35]} gxh4 {[%emt 0:49:48]} 42. Bf4 {[%emt 0:00:00]} h3+ {[%emt 0:00:00]} 43. Kh2 {[%emt 0:00:00]} Re8 {[%emt 0:00:00]} 44. Bg3 {[%emt 0:00:00]} Rxg3 {[%emt 0:00:00]} 45. e6+ {[%emt 0:00:00]} (45. Kxg3 {only move.} Rxe5 46. Kxh3) 45... fxe6 {[%emt 0:00:00]} (45... Kxd6 46. exf7 Rb8 (46... Rxg4 $2 {is the wrong capture.} 47. fxe8=Q Ra4 48. Qe6+ Kc7 49. f6 $18) (46... Rg2+ 47. Kxh3 Rf8 48. Kxg2 $11) 47. Re1 $19 (47. Kxg3 $2 Ke7 $19)) 46. Kxg3 {[%emt 0:00:00]} exf5 {[%emt 0:00:00] Weighted Error Value: White=0.54/Black=0.28 (precise)   Loses game:     	White=1     	---        Missed win:     	---       	Black=1      Mistake:       	White=6     	Black=1      Inaccurate:     	White=1     	Black=2      OK:         	White=8     	Black=11     Best:        	White=3     	Black=3      Strong:       	---       	Black=1} ({Weaker is} 46... Kxd6 47. Rd1+ Kc7 48. Kxh3 $19) 0-1

[Event "4NCL Div 1 2024-25"]
[Site "England"]
[Date "2025.01.26"]
[Round "4.26"]
[White "Bates, Richard A"]
[Black "Prior, Stephen C V"]
[Result "1-0"]
[Annotator "TA"]
[ECO "E16"]
[WhiteElo "2315"]
[BlackElo "2026"]
[PlyCount "155"]
[EventDate "2024.11.23"]
[EventType "team-tourn"]
[EventCountry "ENG"]
[SourceTitle "playchess.com"]
[Source "ChessBase"]
[SourceQuality "1"]
[TimeControl "40/6000+30:3000+30"]

{[%evp 18,155,30,20,24,22,28,18,20,31,29,17,23,16,24,17,11,9,45,13,51,33,36,41,36,27,150,128,119,120,133,114,122,106,113,110,104,97,119,76,81,84,87,85,92,63,91,75,62,53,62,42,50,49,95,50,95,61,95,104,105,94,88,95,87,47,54,47,47,11,8,7,13,15,30,31,241,223,168,167,169,188,879,859,960,951,794,584,618,134,564,559,338,157,157,157,1550,2594,2235,1700,2479,2648,2110,438,1885,1353,4739,4622,3316,2054,5616,5458,7634,4637,4631,1497,2275,1741,29973,29974,29974,29974,29974,29976,29977,29978,29972,29973,29972,29974,29973,29973,29981,29981,29981,29982,29982,29983,29983,29984]} 1. d4 {[%emt 0:10:05]} Nf6 {[%emt 0:10:03]} 2. Nf3 {[%emt 0:00:14]} e6 {[%emt 0:00:10]} 3. c4 {[%emt 0:00:06]} b6 {[%emt 0:00:10]} 4. g3 {[%emt 0:00:29]} Bb7 {[%emt 0:00:22]} 5. Bg2 {[%emt 0:00:07]} Bb4+ {[%emt 0:00:57]} 6. Bd2 {[%emt 0:00:45]} Bxd2+ {[%emt 0:00:31]} 7. Qxd2 {[%emt 0:00:08]} O-O {[%emt 0:01:14]} 8. O-O {[%emt 0:01:07]} d5 {[%emt 0:02:14]} 9. cxd5 {[%emt 0:02:06]} exd5 {[%emt 0:00:28]} 10. Nc3 {[%emt 0:02:21]} Nbd7 {[%emt 0:02:30] E16: Queen's Indian: 4 g3 Bb7 5 Bg2 Bb4+.} 11. Rac1 {[%emt 0:09:52]} c6 {[%emt 0:00:55]} 12. Qf4 {[%emt 0:05:01]} Re8 {[%emt 0:05:27] The position is equal.} 13. Rfd1 {[%emt 0:22:03]} Qe7 {[%emt 0:09:19]} 14. e3 $146 {[%emt 0:06:29]} (14. Nh4 g6 15. Bh3 Nf8 16. Nf3 Rad8 17. Qe5 Ne6 18. Bxe6 fxe6 19. Qg5 c5 20. e3 {0-1 Webb,L (2184)-Eggleston,D (2356) British OTB-ch 2021 (5)}) 14... Nf8 {[%emt 0:07:03]} 15. Ne5 {[%emt 0:01:42]} Ng6 {[%emt 0:01:24]} 16. Nxg6 {[%emt 0:01:05]} hxg6 {[%emt 0:01:20]} 17. h4 {[%emt 0:02:12][%cal Oc3d5] With the idea Nxd5!.} Qb4 {[%emt 0:08:37]} 18. b3 {[%emt 0:02:56]} Re7 {[%emt 0:02:26]} 19. Bf3 {[%emt 0:03:31]} Rae8 {[%emt 0:06:03]} 20. Kg2 {[%emt 0:00:48]} Bc8 {[%emt 0:10:11]} 21. g4 {[%emt 0:04:36][%cal Bg3g4,Bg4g5][%mdl 32] Dodges Nh5} Ne4 {[%emt 0:03:49]} (21... Qa3 $11 {remains equal.}) 22. Nxe4 {[%emt 0:01:31]} dxe4 {[%emt 0:00:59]} 23. Be2 {[%emt 0:00:15]} Bd7 {[%emt 0:06:18]} 24. g5 {[%emt 0:04:22]} Qa5 {[%emt 0:04:14]} 25. Rc2 {[%emt 0:00:59]} Qf5 {[%emt 0:05:06]} 26. Qxf5 {[%emt 0:01:13] Successful Defense White} gxf5 {[%emt 0:00:16]} 27. Kg3 {[%emt 0:02:26]} g6 {[%emt 0:03:26]} 28. b4 {[%emt 0:02:50][%cal Ob4b5]} c5 {[%emt 0:01:58]} 29. b5 {[%emt 0:02:31]} (29. bxc5 Ba4 30. Rc4 Bxd1 31. Bxd1 bxc5 32. Rxc5 Kh7 $15) 29... cxd4 {[%emt 0:01:18]} 30. Rxd4 {[%emt 0:00:09]} Be6 {[%emt 0:01:29]} 31. Rd6 {[%emt 0:05:19]} Kg7 {[%emt 0:03:15]} 32. a3 {[%emt 0:02:10]} Kf8 {[%emt 0:01:54]} 33. Kf4 {[%emt 0:01:31]} Kg7 {[%emt 0:00:47]} 34. Rcc6 {[%emt 0:02:07]} Rh8 {[%emt 0:02:01]} 35. Kg3 {[%emt 0:00:44]} Rhe8 {[%emt 0:00:13]} (35... Rb7 $14 {is more appropriate.}) 36. a4 {[%emt 0:03:01]} Bb3 {[%emt 0:01:54]} 37. Rd4 {[%emt 0:00:21]} Be6 {[%emt 0:00:45]} 38. Bc4 {[%emt 0:02:01] White is more active.} Bxc4 {[%emt 0:01:05]} 39. Rcxc4 $16 {[%emt 0:04:25][%mdl 4096] Endgame KRR-KRR} Rb7 {[%emt 0:01:56]} 40. Rc6 {[%emt 0:00:29]} Rh8 {[%emt 0:03:21]} 41. Rdc4 {[%emt 0:27:57]} Rd7 {[%emt 0:25:18]} 42. Rc7 {[%emt 0:02:23]} Rhd8 {[%emt 0:00:54]} 43. Rxd7 {[%emt 0:02:18]} Rxd7 $14 {[%emt 0:00:05] KR-KR} 44. Rc8 {[%emt 0:00:35]} Re7 {[%emt 0:06:00]} 45. Kf4 {[%emt 0:01:50][%cal Oh4h5]} Rd7 {[%emt 0:01:16]} 46. Rc2 {[%emt 0:04:49]} a6 $2 {[%emt 0:03:14]} 47. Rc6 $1 $18 {[%emt 0:04:48]} (47. bxa6 Ra7 $11) 47... axb5 {[%emt 0:01:18]} 48. axb5 {[%emt 0:00:03]} (48. Rxb6 bxa4 49. Ra6 Rd1 $11 (49... Rd2 50. Kg3 $11)) 48... Rd2 {[%emt 0:05:51] [#]} 49. Kg3 {[%emt 0:00:42]} (49. Rxb6 Rxf2+ 50. Ke5 Re2 $11) 49... f4+ $2 {[%emt 0:01:31]} (49... Kf8 50. Rxb6 Rb2) 50. Kxf4 {[%emt 0:02:07]} Rxf2+ {[%emt 0:00:12]} 51. Kxe4 {[%emt 0:00:09]} Rh2 {[%emt 0:00:26]} 52. Rxb6 {[%emt 0:00:21]} Rxh4+ {[%emt 0:00:11]} 53. Kf3 $2 {[%emt 0:00:40]} (53. Kd5 $18 Rg4 54. Rd6) 53... Rh5 $2 {[%emt 0:00:37][%mdl 8192] [#]} (53... Rh3+ $16 {is tougher.} 54. Ke4 Rh5) 54. Kg4 $1 {[%emt 0:01:28]} Rh1 {[%emt 0:00:11]} 55. Rd6 {[%emt 0:01:54]} (55. Rb8 $18) 55... Rb1 $16 {[%emt 0:00:17]} 56. b6 {[%emt 0:02:38]} Rb4+ $2 {[%emt 0:00:22] This move loses the game for Black.} (56... Kf8 $16 57. e4 Ke7) 57. Kf3 $18 {[%emt 0:00:42]} Rb5 {[%emt 0:00:35]} 58. Kf4 {[%emt 0:00:20]} Rf5+ {[%emt 0:00:49]} 59. Kg4 {[%emt 0:00:08]} ({Not} 59. Ke4 Rxg5 60. Kd4 Rb5 $16) 59... Rb5 {[%emt 0:00:18]} 60. e4 {[%emt 0:00:28][%cal Be3e4,Be4e5][%mdl 32]} Rb4 {[%emt 0:02:18]} (60... Kf8 $142 61. Rd8+ Ke7) 61. Kf4 {[%emt 0:00:22]} Rb5 {[%emt 0:01:02]} 62. e5 {[%emt 0:01:58]} Rb4+ {[%emt 0:01:22]} 63. Ke3 {[%emt 0:01:06]} Kf8 {[%emt 0:00:28]} 64. Kd3 {[%emt 0:02:41]} Ke7 {[%emt 0:00:41]} 65. Kc3 {[%emt 0:00:05]} Rb5 {[%emt 0:04:04]} 66. Kd4 {[%emt 0:01:07]} Ra5 {[%emt 0:01:52]} 67. Rc6 {[%emt 0:01:15] Black must now prevent Kc4.} Rb5 {[%emt 0:01:21]} 68. Kc4 {[%emt 0:00:24] White mates.} Rb1 {[%emt 0:00:13]} 69. Rd6 {[%emt 0:00:30]} Re1 {[%emt 0:01:57]} 70. Kd5 {[%emt 0:00:18]} Rd1+ {[%emt 0:00:39]} 71. Kc6 {[%emt 0:00:09]} Rc1+ {[%emt 0:00:18]} 72. Kb5 {[%emt 0:01:06]} Rb1+ {[%emt 0:00:14]} 73. Ka6 {[%emt 0:00:04]} Ra1+ {[%emt 0:00:23]} 74. Kb7 {[%emt 0:00:05]} Rc1 {[%emt 0:01:56]} 75. Rc6 {[%emt 0:00:33]} Rd1 {[%emt 0:00:36]} 76. Ka7 {[%emt 0:01:13]} Ra1+ {[%emt 0:00:14]} 77. Kb8 {[%emt 0:00:07]} Ra5 {[%emt 0:00:22]} 78. Kc7 {[%emt 0:00:43] Weighted Error Value: White=0.31/Black=0.78  Loses game:     	---       	Black=3      Missed win:     	White=1     	---        Mistake:       	---       	Black=3      Inaccurate:     	White=7     	Black=6      OK:         	White=15    	Black=19     Best:        	White=2     	Black=1      Strong:       	White=1     	---} 1-0